Cogmind - Beta 15 @@@ ROGUE MODE // 2025.05.14 @ 20:20:07 Player: markverb1 Result: Destroyed by G-47 Trooper with Particle Gun Performance ------------- Evolutions (1) 500 Regions Visited (2) 400 Robots Destroyed (62) 310 Value Destroyed (1415) 1415 Prototype IDs (2) 40 Alien Tech Used (0) 0 Bonus (46) 46 TOTAL SCORE: 2711 Bonus ------- High Alert Combat Kills 46 Cogmind --------- Core Integrity 0/400 Matter 16/300 Energy 105/125 System Corruption 0% Temperature Cool (15) Movement Core (600) Ox11 Location -9/Materials Parts ------- > --- POWER (1) -------- Light Ion Engine > --- PROPULSION (3) --- (None) > --- UTILITY (2) ------ Large Storage Unit Backup Plating I > --- WEAPON (3) ------- Small Laser Flak Cannon Maul > --- INVENTORY (15) --- Terrain Scanner Hacking Suite System Shield System Shield Peak State ------------ > --- POWER ------------ Ion Engine > --- PROPULSION ------- Aluminum Leg Aluminum Leg Aluminum Leg > --- UTILITY ---------- Large Storage Unit System Shield > --- WEAPON ----------- Assault Rifle Flak Cannon Datajack > --- INVENTORY -------- Light Ion Engine Terrain Scanner Backup Plating I Small Laser [Rating: 13] Favorites ----------- Power Ion Engine Engine Ion Engine Propulsion Aluminum Leg Treads Light Treads Leg Aluminum Leg Utility Large Storage Unit Device Seismic Detector Storage Large Storage Unit Hackware System Shield Protection Backup Plating I Weapon Assault Rifle Energy Gun Small Laser Ballistic Gun Assault Rifle Ballistic Cannon Flak Cannon Launcher Grenade Launcher Impact Weapon Maul Special Melee Weapon Datajack Build | -11 -10 -9 ------- Run | Yrd Mat Mat Slots Evolved 2 | . . 2 Power . | . . . Propulsion 1 | . . 1 Utility . | . . . Weapon 1 | . . 1 Parts Attached 30 | 8 13 9 Power 3 | 1 1 1 Engine 3 | 1 1 1 Core . | . . . Reactor . | . . . Propulsion 9 | 4 3 2 Treads 2 | 2 . . Leg 7 | 2 3 2 Wheel . | . . . Hover . | . . . Flight . | . . . Utility 9 | 1 5 3 Device 4 | . 3 1 Storage 3 | 1 2 . Processor . | . . . Hackware 1 | . . 1 Protection 1 | . . 1 Artifact . | . . . Weapon 9 | 2 4 3 Energy Gun 1 | 1 . . Energy Cannon . | . . . Ballistic Gun 3 | 1 2 . Ballistic Cannon 1 | . . 1 Launcher 2 | . 1 1 Special Weapon . | . . . Impact Weapon 1 | . . 1 Slashing Weapon . | . . . Piercing Weapon . | . . . Special Melee Weapon 1 | . 1 . Unidentified Prototypes . | . . . Parts Lost 12 | . 3 9 Power 1 | . . 1 Propulsion 4 | . . 4 Utility 2 | . 1 1 Weapon 5 | . 2 3 Highest Loss Streak 4 | . 2 4 To Critical Strikes . | . . . Average Backups 4 | 2 3 5 Power . | 1 1 . Propulsion . | 1 . . Utility 1 | . . 3 Weapon 1 | . . 1 Tool/Special . | . . . Unused Backups 6 | . 3 3 Power 1 | . 1 . Propulsion . | . . . Utility 4 | . 1 3 Weapon 1 | . 1 . Tool/Special . | . . . Average Slot Usage (%) 94 | . 96 91 Engine 12 | . 14 10 Leg 28 | . 27 30 Device 9 | . 10 7 Storage 13 | . 14 11 Protection 1 | . 1 . Energy Gun 2 | . 3 . Ballistic Gun 11 | . 13 9 Launcher 8 | . 9 8 Impact Weapon 2 | . . 5 Special Melee Weapon 1 | . . 2 Peak Build Rating 13 | 6 7 13 Average Rating 8 | 3 6 11 On Entrance 4 | . 6 7 Naked Turns . | . . . Heaviest Build 36 | 11 31 36 Greatest Support 40 | 40 20 30 Greatest Overweight (x) 3 | . 3 2 Average Overweight (x) . | . . . Largest Inventory Capacity 15 | 8 15 15 Average Capacity 14 | 5 13 15 Most Carried 7 | 5 6 7 Average Carried 4 | 2 3 5 Final Capacity 15 | 8 15 15 Final Carried 4 | 2 4 4 Class Distribution -------------------- 100% | Mutant Dominant Class ---------------- Mutant | -10/Materials Mutant | -9/Materials Resources | -11 -10 -9 ----------- Run | Yrd Mat Mat Matter Collected 989 | 247 445 297 Remotely . | . . . Salvage Created 1355 | . 658 697 Parts 101 | . 47 54 Haulers Intercepted . | . . . Recyclers Shooed 2 | . 1 1 Parts Field Recycled . | . . . Retrieved Matter . | . . . Parts Self-Destructed . | . . . Prevented . | . . . Kills | -11 -10 -9 ------- Run | Yrd Mat Mat Combat Hostiles Destroyed 40 | . 19 21 Guns 18 | . 13 5 Cannons 4 | . . 4 AOE 18 | . 6 12 Classes Destroyed 10 | . 7 3 Worker 5 | . . 5 Builder 7 | . 2 5 Tunneler 1 | . 1 . Recycler 2 | . 1 1 Operator 3 | . 1 2 Watcher 4 | . 2 2 Swarmer 10 | . 6 4 Grunt 27 | . 13 14 Duelist 1 | . . 1 Sentry 2 | . . 2 Best Kill Streak 12 | . 12 10 Combat Bots Only 12 | . 12 9 Max Kills in Single Turn 3 | . 3 3 Gunslinging . | . . . Exploded 2 | . 2 2 Melee . | . . . Uniques/NPCs Destroyed . | . . . Combat | -11 -10 -9 -------- Run | Yrd Mat Mat Hostile Shots Fired 205 | . 69 136 Missed 57 | . 14 43 Hits 148 | . 55 93 Projectile 148 | . 55 93 Critical Strikes 2 | . . 2 Damage Taken 1786 | . 655 1131 Core 552 | . 149 403 Absorbed by Shields 197 | . . 197 Regen/Repaired (Parts) 72 | . 72 . Core Remaining (%) 70 | 100 40 . Volleys Fired 123 | . 67 56 Largest 2 | . 2 2 Hottest 70 | . 60 70 Shots Fired 174 | . 89 85 Gun 122 | . 77 45 Cannon 9 | . . 9 Launcher 43 | . 12 31 Special . | . . . Kinetic 101 | . 51 50 Thermal 30 | . 26 4 Explosive 43 | . 12 31 Electromagnetic . | . . . Robot Hit Streak 10 | . 10 10 Robot Miss Streak 5 | . 4 5 Penetration Max . | . . . Secondary Targets . | . . . Shots Hit Robots 116 | . 60 56 Core Hits 104 | . 41 63 Critical Kills 1 | . 1 . Critical Parts Destroyed 1 | . . 1 Critical Strikes 2 | . 1 1 Destroy 1 | . 1 . Smash 1 | . . 1 Melee Attacks 12 | . 6 6 Impact 5 | . . 5 Slashing . | . . . Piercing . | . . . Sneak Attacks 11 | . 6 5 Combat Hostiles . | . . . Follow-up Attacks . | . . . Damage Inflicted 3725 | . 1274 2451 Guns 935 | . 593 342 Cannons 127 | . . 127 Explosions 2325 | . 656 1669 Melee 305 | . . 305 Ramming 33 | . 25 8 Kinetic 817 | . 392 425 Thermal 245 | . 201 44 Explosive 2325 | . 656 1669 Electromagnetic . | . . . Impact 305 | . . 305 Slashing . | . . . Piercing . | . . . Highest Corruption 2 | . 2 . Average Corruption 1 | . 1 . Corruption Purged . | . . . Corruption Blocked . | . . . Effects 7 | . 7 . Message Errors 2 | . 2 . Matter Fused 1 | . 1 . Energy Discharges 1 | . 1 . Parts Rejected 1 | . 1 . Data Loss (minor) 1 | . 1 . Alerts 1 | . 1 . Overload Shots . | . . . Overflow Damage 173 | . 19 154 Projectiles . | . . . Explosions 62 | . 19 43 Melee 111 | . . 111 Knockbacks 12 | . . 12 Impact 1 | . . 1 Kinetic 8 | . . 8 Secondary 3 | . . 3 Self-Inflicted Damage 366 | . 134 232 Shots 14 | . 6 8 Rammed . | . . . Targets Rammed 8 | . 6 2 Kicked 8 | . 6 2 Crushed . | . . . Highest Temperature 52 | . 52 15 Average Temperature 21 | . 24 7 Received Heat Transfer 595 | . 180 415 Siege Activations . | . . . Martial Activations . | . . . Shielding Activations . | . . . Robots Disrupted . | . . . Combat Hostiles . | . . . Robots Corrupted 1 | . . 1 Combat Hostiles . | . . . Parts Fried 2 | . . 2 Impact Corruptions 5 | . . 5 Robots Melted . | . . . Combat Hostiles . | . . . Parts Melted 1 | . 1 . Heat Transferred 550 | . 450 100 Parts Sabotaged . | . . . Parts Stolen . | . . . Parts Stripped . | . . . Power Chain Reactions . | . . . Alert | -11 -10 -9 ------- Run | Yrd Mat Mat Maximum Alert Level 2 | . 1 2 Low Security (%) 58 | 100 77 30 Level 1 32 | . 22 48 Level 2 8 | . . 21 Level 3 . | . . . Level 4 . | . . . Level 5 . | . . . High Security . | . . . Max Security . | . . . Peak Influence 564 | . 324 564 Initial 128 | . . 128 Average 161 | . 85 274 Influence Increases 1530 | . 672 858 Destroy 0b10 Robot/C 800 | . 380 420 Destroy 0b10 Robot/NC 110 | . 35 75 Destroy Leader 188 | . 94 94 Successful Hack 20 | . 20 . Disable Machine 75 | . 15 60 Destroy Structure 277 | . 68 209 Lose Combat Pursuer 60 | . 60 . Influence Decreases 1002 | . 367 635 Entered New Map 177 | . . 177 Time Decay 679 | . 311 368 Lost Part 120 | . 30 90 Purge Threat 26 | . 26 . Squads Dispatched 10 | . 6 4 Investigation 4 | . 3 1 Extermination . | . . . Reinforcement 5 | . 3 2 Assault 1 | . . 1 Garrison . | . . . Intercept . | . . . Searches Triggered . | . . . Construction Impeded 1 | . . 1 Haulers Reinforced . | . . . Active Scanning Responses . | . . . Cargo Convoy Interrupts . | . . . Stealth | -11 -10 -9 --------- Run | Yrd Mat Mat Distress Signals 7 | . 7 . Communications Jammed . | . . . Distress Signals . | . . . Times Spotted 63 | . 32 31 Peak Tracking Total 7 | . 7 6 Tactical Retreats 3 | . 3 . Traps | -11 -10 -9 ------- Run | Yrd Mat Mat Traps Triggered 1 | . 1 . Indirectly . | . . . Trap Hack Attempts . | . . . Triggered . | . . . Disarmed . | . . . Reprogrammed . | . . . Reused . | . . . Traps Extracted . | . . . Installed . | . . . Triggered . | . . . Machines | -11 -10 -9 ---------- Run | Yrd Mat Mat Machines Disabled 5 | . 1 4 Max in Single Turn 1 | . 1 1 Machines Repaired . | . . . Machines Dismantled . | . . . Machines Sabotaged . | . . . Overloaded Fab Kills . | . . . Hacking | -11 -10 -9 --------- Run | Yrd Mat Mat Machines Accessed 6 | . 4 2 Terminals 4 | . 3 1 Fabricators . | . . . Repair Stations 1 | . 1 . Recycling Units . | . . . Scanalyzers 1 | . . 1 Garrison Access . | . . . Total Hacks 18 | . 14 4 Successful 11 | . 9 2 Failed 7 | . 5 2 Catastrophic . | . . . Database Lockouts . | . . . Manual 2 | . . 2 Terminals 13 | . 11 2 Fabricators . | . . . Repair Stations 3 | . 3 . Recycling Units . | . . . Scanalyzers 2 | . . 2 Garrison Access . | . . . Terminal Hacks 6 | . 6 . Prototype ID Bank 1 | . 1 . Unreport Threat 1 | . 1 . Locate Traps 1 | . 1 . Hauler Manifests 1 | . 1 . Zone Layout 2 | . 2 . Fabricator Hacks . | . . . Repair Station Hacks 3 | . 3 . Scan Component 1 | . 1 . Repair 1 | . 1 . Refit 1 | . 1 . Recycling Unit Hacks . | . . . Scanalyzer 2 | . . 2 Insert Component 1 | . . 1 Analyze 1 | . . 1 Garrison Access Hacks . | . . . Unauthorized Hacks . | . . . Terminals . | . . . Fabricators . | . . . Repair Stations . | . . . Recycling Units . | . . . Scanalyzers . | . . . Garrison Access . | . . . Data Cores Recovered . | . . . Used . | . . . Hacking Detections 5 | . 4 1 Full Trace Events 5 | . 4 1 Feedback Events 2 | . 2 . Corruption 2 | . 2 . Feedback Blocked . | . . . Robot Schematics Acquired . | . . . Robots Built . | . . . Authchips . | . . . Time . | . . . Total Robot Build Rating . | . . . Part Schematics Acquired 1 | . . 1 Parts Built . | . . . Authchips . | . . . Time . | . . . Total Part Build Rating . | . . . Parts Repaired 1 | . 1 . Time 26 | . 26 . Parts Recycled . | . . . Recycled Matter . | . . . Retrieved Matter . | . . . Retrieved Components . | . . . Parts Scanalyzed 1 | . . 1 Part Schematics Acquired 1 | . . 1 Parts Damaged . | . . . Bothacking | -11 -10 -9 ------------ Run | Yrd Mat Mat Used RIF Installer . | . . . Robots Hacked 3 | . 3 . Non-combat 3 | . 3 . Combat . | . . . Robot Hacks Applied 4 | . 4 . no_distress 3 | . 3 . check_alert 1 | . 1 . Relay Couplers Released . | . . . Fabnet Peak Effective % . | . . . Robots Rewired . | . . . Allies Hacked . | . . . Hacks Repelled . | . . . Allies | -11 -10 -9 -------- Run | Yrd Mat Mat Total Allies . | . . . Largest Group . | . . . Highest-Rated Group . | . . . Highest-Rated Ally . | . . . Total Orders . | . . . Ally Attacks . | . . . Total Damage . | . . . Kills . | . . . Allies Corrupted . | . . . Allies Melted . | . . . Intel | -11 -10 -9 ------- Run | Yrd Mat Mat Active Infowar (turns) 852 | . 852 . Terrain 32 | . 32 . Seismic 820 | . 820 . Robot Analysis Total . | . . . Derelict Logs Recovered . | . . . Drone Launches . | . . . Drone Recoveries . | . . . Exploration | -11 -10 -9 ------------- Run | Yrd Mat Mat Turns Passed 2081 | 48 1178 855 Spaces Moved 942 | 36 512 394 Core 19 | 19 . . Treads 5 | 5 . . Legs 918 | 12 512 394 Wheels . | . . . Hover . | . . . Flight . | . . . Fastest Speed 50 | 50 120 120 Average Speed 168 | 88 176 165 Slowest Speed 330 | 160 330 260 Overloaded Moves . | . . . Propulsion Burnouts . | . . . Robots Hopped . | . . . Potential Cave-ins 2 | . . 2 Cave-ins Triggered . | . . . Exploration Rate (%) 36 | 3 78 29 Regions Visited 2 Branch Regions . Pre-discovered Areas . | . . . Known Exits Taken . | . . . Unknown Exits Taken 2 | 1 1 . Scrap Searched . | . . . Spaces Dug . | . . . Terrain Destroyed 303 | . 66 237 Melee . | . . . Projectile . | . . . AOE 303 | . 66 237 Terrain Rammed . | . . . Walls Destroyed . | . . . Machines Disabled . | . . . Actions | -11 -10 -9 --------- Run | Yrd Mat Mat Total 1244 | 51 691 502 Wait 65 | . 50 15 Move 940 | 35 511 394 Hop . | . . . Pick Up 36 | 7 18 11 Fast Attach 2 | 2 . . Attach 24 | 5 9 10 Detach 5 | . 3 2 Swap 15 | 1 10 4 Drop 14 | 1 11 2 Fire 123 | . 67 56 Melee 12 | . 6 6 Ram . | . . . Kick 8 | . 6 2 Crush . | . . . Escape Stasis . | . . . Rewire . | . . . Trap . | . . . Miscellaneous . | . . . Route ------- -11/Scrapyard -10/Materials (discovered 5 exits: *Mat x3 / [*Min] / [*Sub]) -9/Materials (discovered 3 exits: [*Mat] / [*Min] / [*Sto]) History --------- Turn | Location | Event 12 | -11/Scrapyard | Discovered new exit (range 16) 49 | -11/Scrapyard | Entered Materials 108 | -10/Materials | Discovered new exit (range 5) 242 | -10/Materials | Discovered new exit (range 15) 303 | -10/Materials | Discovered new exit (range 11) 306 | -10/Materials | Build established: Mutant 398 | -10/Materials | Discovered new exit (range 14) 981 | -10/Materials | Core integrity fell below 50% 1040 | -10/Materials | Destroyed 12 combat bots 1138 | -10/Materials | Repaired Aluminum Leg 1187 | -10/Materials | Discovered new exit (range 16) 1227 | -10/Materials | Entered another Materials area 1227 | -9/Materials | Evolved 2 slots: Propulsion x1, Weapon x1 1286 | -9/Materials | Discovered new exit (range 16) 1474 | -9/Materials | Destroyed 9 combat bots 1881 | -9/Materials | Discovered new exit (range 10) 2027 | -9/Materials | First assault squad dispatched 2037 | -9/Materials | Core integrity fell below 50% 2052 | -9/Materials | Discovered new exit (range 14) 2068 | -9/Materials | Core integrity fell below 20% 2082 | -9/Materials | Destroyed by G-47 Trooper with Particle Gun Last Messages --------------- Aluminum Leg destroyed. Critical hit (Burn: +37). The unstable cave ceiling collapses. [Achievement: Oops] Mni. Grenade Launcher destroyed. U-05 Engineer builds a Wall. Acquired 14 matter. The unstable cave ceiling collapses. K-01 Serf collects debris. C-30 ARC bursts open, deploying its payload. G-47 Trooper unfolds itself. G-34 Mercenary unfolds itself. U-05 Engineer lays Concrete. The unstable cave ceiling collapses. U-05 Engineer lays Concrete. The unstable cave ceiling collapses. K-01 Serf collects debris. U-05 Engineer builds a Wall. Aluminum Leg destroyed. M-13 Machinist repairs K-01 Serf. Map ----- +----------------------------------------------------+ | ????????????????????????????????????????######### | | ??????????????????????????????????????????????### | | ???????????????????????????????????????????????## | | ??????????????????????????????????????????????#### | | ??????????????????????????????????????????????# | | ??????????????????????????????????????????????#""" | | ??????????????????????????????????????????????#""" | | ??????????????????????????????????????????????#""" | | ??????????????????????????????????????????????# | | ???????????????????????????????## #???????????#""" | | ??????????????????????????????? ???????????#""" | | ???????????????????????????###? ?????????????""" | | ???????????????????????????# ? ????????????+ | | ???????????????????????????#%#? ????????????#### | | ?????????????????????????### ## ????????????????? | | ???????????????????????### g g #######??????????? | | ???????????????????????# #??????????? | | ???????????????????????# # gg # ???????????? | | ???????????????????##### % """????????????? | | ???????????????????? """ ???????????? | | ??????????????????????# # Y """ #??????????? | | ????????????????????????# m ????????????? | | ????????????????????????# k ##????????########? | | ????????????????????????# ##????????# #? | | ????????????????????????#! ##????????# """ !#? | | ????????????????????????#@ gu########??# """ #? | | ???????????????????????# + #??# """ ## | | ???????????????????????# ###### #??# # | | ???????????????????????# ##???# #??# | | ???????????????????????# #== #????# #?###+## | | ?????????????????????? * # #???# #?# | | ????????????????????? = ###### ### | | ???????????????????? < | | ??????????????????? ############ | | ??????????????????? ######??????????# # | | ????????????????????####????????????????######### | | ????????????????????????????????????????????????## | | | | | | | | | | | | | | | | | | | | | | | | | | | +----------------------------------------------------+ Best States ------------- Heat Dissipation 28 Energy Generation 10 Energy Capacity 275 Matter Stores 300 Matter Capacity 300 Sight Range 16 Terrain Scan Range 14 Terrain Scan Density 10 Armor Coverage 80 Evasion (%) 55 Recoil Reduction 2 Defensive Hacking 10 Item Schematics ----------------- Mni. Grenade Launcher | -9/Materials | Scanalyzed Robot Schematics ------------------ None Fabricated ------------ Nothing Repaired ---------- Aluminum Leg | 20% | -10/Materials Alien Tech Used ----------------- None Achievements -------------- Let's See Who's Tougher Oops Power Corrupts Remodeling Shopping List Significant Disruption Challenges ------------ None Game ------ Seed LauncherSmartAnalyzer Manual? 0 Play Time 00:28:09 Cumulative 1.0 hours Start 2025.05.14 @ 19:52:36 End 2025.05.14 @ 20:20:07 Sessions 1 Manual Loads 0 Difficulty Rogue Special Mode None Game No. 5 Rogue 5 Adventurer 0 Explorer 0 Win Type - Total 0 Types 0/0/0/0/0/0/0/0/0/0 Lore% 0 Gallery% 2 Achievement% 5 Wizard Run 0 Options --------- Layout 1 ASCII 0 Keyboard 0 Movement Mouse Keybinds 0 Fullscreen 1 Font 32/Smallcaps Map View 50x35 Zoom Use 0% Tactical HUD 0 Map Filters NONE Filters NONE Steam 1 RUN: 62a87b73-949d-45cc-88bc-77cb7fae3a61